bitfinex/quotes_SOLUSD_20250212
["timestamp","ask_amount","ask_price","bid_price","bid_amount"]
[1739326049889,15.52716879,197.26,197.19,17.00346879]
[1739326050379,15.52716879,197.26,197.18,5.0715]
[1739326050380,15.46416879,197.23,197.18,5.0715]
[1739326050682,0.063,197.26,197.16,15.46416879]
[1739326050683,15.46416879,197.22,197.16,5.0719]
[1739326051260,15.46416879,197.23,197.16,20.53606879]
[1739326051764,15.46416879,197.22,197.15,20.53636879]
[1739326052385,15.46416879,197.19,197.14,13.033]
[1739326053782,15.46416879,197.18,197.14,0.03]
[1739326053984,15.46416879,197.17,197.14,0.03]
[1739326054185,15.46416879,197.15,197.14,0.03]
[1739326063898,20.53636879,197.15,197.14,0.03]
[1739326067682,14.97524474,197.15,197.14,0.03]
[1739326073695,15.10073474,197.15,197.14,0.03]
[1739326078601,15.22622474,197.15,197.14,0.03]
[1739326078810,10.15402474,197.15,197.14,0.03]
[1739326079111,15.22622474,197.15,197.14,0.03]
[1739326080729,9.90304474,197.17,197.14,0.03]
[1739326081222,9.90304474,197.16,197.14,0.03]
[1739326082194,9.90304474,197.15,197.14,0.03]
[1739326086209,9.90304474,197.16,197.14,0.03]
[1739326087304,9.90304474,197.21,197.14,9.93304474]
[1739326087616,14.97324474,197.23,197.16,9.90304474]
[1739326088207,9.90304474,197.22,197.15,9.90304474]
[1739326088413,14.97344474,197.22,197.15,14.97514474]
[1739326089399,9.90304474,197.22,197.15,14.97514474]
[1739326091322,9.90304474,197.23,197.16,9.90304474]
[1739326091705,9.90304474,197.23,197.17,9.90304474]
[1739326092217,65.4297,197.25,197.14,9.93304474]
[1739326092218,9.90304474,197.21,197.14,9.93304474]
[1739326092518,9.90304474,197.21,197.14,15.00554474]
[1739326092698,9.90304474,197.22,197.15,9.90304474]
[1739326093515,9.90304474,197.22,197.15,14.97504474]
[1739326093702,9.90304474,197.24,197.17,9.90304474]
[1739326093908,70.26304474,197.25,197.18,9.90304474]
[1739326094610,9.90304474,197.25,197.18,9.90304474]
[1739326095226,0.063,197.26,197.2,9.90304474]
[1739326096107,0.063,197.26,197.21,9.90304474]
[1739326096303,0.063,197.26,197.22,9.90304474]
[1739326096506,0.063,197.26,197.23,9.90304474]
[1739326097499,0.063,197.26,197.21,14.97364474]
[1739326098517,0.063,197.26,197.23,9.90304474]
[1739326099310,0.063,197.26,197.24,9.90304474]
[1739326100329,0.063,197.26,197.23,14.97294474]
[1739326100928,0.063,197.26,197.24,9.90304474]
[1739326101128,0.063,197.26,197.23,5.0699]
[1739326101129,0.063,197.26,197.25,9.90304474]
[1739326102427,0.063,197.26,197.25,16.53944474]
[1739326106309,0.063,197.26,197.23,9.90304474]
[1739326106510,0.063,197.26,197.22,5.0704]
[1739326106732,0.063,197.26,197.23,9.90304474]
[1739326107134,0.063,197.26,197.22,14.97344474]
[1739326107629,0.063,197.26,197.23,9.90304474]
[1739326108936,0.063,197.26,197.22,14.97344474]
[1739326112131,0.063,197.26,197.23,9.90304474]
[1739326112731,0.063,197.26,197.23,14.97304474]
[1739326123839,0.063,197.26,197.25,9.90304474]
[1739326124437,0.063,197.26,197.25,23.31489327]
[1739326124821,0.0001,197.26,197.25,23.31489327]
[1739326125944,0.0001,197.26,197.25,28.38459327]
[1739326127344,0.0001,197.26,197.25,31.37786327]
[1739326130146,0.0001,197.26,197.25,32.50335327]
[1739326130529,0.0001,197.26,197.25,31.50335327]
[1739326130728,0.0001,197.26,197.25,32.50335327]
[1739326131625,0.0001,197.26,197.25,33.78146275]
[1739326132824,0.0001,197.26,197.25,33.81146275]
[1739326133031,0.0001,197.26,197.25,32.81146275]
[1739326133750,0.0001,197.26,197.25,28.41459327]
[1739326136250,0.0001,197.26,197.25,29.79106327]
[1739326137558,0.0001,197.26,197.25,28.41459327]
[1739326144655,0.0001,197.26,197.25,109.31459327]
[1739326147787,0.0001,197.26,197.25,110.81655327]
[1739326147955,0.063,197.31,197.3,23.31489327]
[1739326148281,0.063,197.31,197.3,109.28329327]
[1739326148841,0.063,197.33,197.31,13.41184853]
[1739326149165,0.063,197.33,197.32,23.31489327]
[1739326149559,0.063,197.33,197.32,29.90304474]
[1739326149757,0.063,197.33,197.32,20.0]
[1739326150158,0.063,197.33,197.3,95.87144474]
[1739326150565,0.063,197.33,197.31,9.90304474]
[1739326150868,0.063,197.33,197.32,9.90304474]
[1739326152251,0.063,197.33,197.32,28.38279327]
[1739326153472,0.063,197.37,197.33,13.41184853]
[1739326153772,0.063,197.37,197.36,23.31489327]
[1739326155474,0.063,197.37,197.36,28.38169327]
[1739326159379,0.063,197.37,197.36,29.38169327]
[1739326160870,0.063,197.37,197.36,28.38169327]
[1739326165682,0.063,197.37,197.36,5.0668]
[1739326166877,0.063,197.37,197.35,18.47894853]
[1739326167180,0.063,197.37,197.35,5.0671]
[1739326168266,0.063,197.37,197.34,18.47914853]
[1739326169287,0.063,197.37,197.34,5.0673]
[1739326170865,0.063,197.37,197.34,28.38219327]
[1739326175594,0.063,197.37,197.35,9.90304474]
[1739326175772,0.063,197.37,197.36,9.90304474]
[1739326177767,0.063,197.37,197.36,14.96984474]
[1739326179293,0.063,197.37,197.35,9.90304474]
[1739326179598,0.063,197.37,197.35,14.97014474]
[1739326179973,0.063,197.37,197.34,5.0673]
[1739326181072,0.063,197.37,197.33,0.03]
[1739326182487,0.063,197.37,197.34,5.0673]
[1739326182705,0.063,197.37,197.34,14.97034474]
[1739326188684,0.063,197.37,197.34,5.0673]
[1739326189908,0.063,197.37,197.34,14.97034474]
[1739326191075,0.09231645,197.35,197.34,18.47914853]
[1739326193297,0.09231645,197.35,197.34,28.38219327]
[1739326194297,3.583e-05,197.36,197.35,13.41184853]
[1739326194474,3.583e-05,197.36,197.35,23.31489327]
[1739326194683,3.583e-05,197.36,197.35,104.21489327]
[1739326195503,7.172e-05,197.37,197.36,0.12549]
[1739326195681,3.105e-05,197.39,197.38,20.0]
[1739326195884,9.586e-05,197.4,197.39,13.41184853]
[1739326196089,9.586e-05,197.4,197.39,23.31489327]
[1739326197301,9.586e-05,197.4,197.39,28.38099327]
[1739326198308,9.586e-05,197.4,197.39,18.47794853]
[1739326198603,9.586e-05,197.4,197.39,5.0661]
[1739326199102,9.586e-05,197.4,197.39,28.38099327]
[1739326199507,9.586e-05,197.4,197.39,109.28099327]
[1739326204052,9.586e-05,197.4,197.39,99.37794853]
[1739326204323,9.586e-05,197.4,197.39,85.9661]
[1739326204689,9.586e-05,197.4,197.39,110.41722055]
[1739326205020,9.586e-05,197.4,197.39,109.65746327]
[1739326205309,0.06309586,197.4,197.39,109.65746327]
[1739326206409,0.06309586,197.4,197.39,109.28099327]
[1739326207704,9.586e-05,197.4,197.39,109.65746327]
[1739326207927,3.623e-05,197.41,197.4,13.41184853]
[1739326208131,3.623e-05,197.41,197.4,24.07443535]
[1739326208525,4.689e-05,197.42,197.4,29.14023535]
[1739326208723,4.689e-05,197.42,197.41,23.31489327]
[1739326208926,2.911e-05,197.44,197.42,13.78831853]
[1739326209108,2.911e-05,197.44,197.43,25.07432729]
[1739326209309,2.911e-05,197.44,197.43,24.07432729]
[1739326209522,2.911e-05,197.44,197.43,25.07432729]
[1739326210529,2.911e-05,197.44,197.43,28.37989327]
[1739326211215,0.09154524,197.44,197.43,28.37989327]
[1739326211553,0.09151613,197.44,197.43,29.13937865]
[1739326212832,0.09151613,197.44,197.43,110.03937865]
[1739326213033,0.09151613,197.44,197.43,109.27989327]
[1739326213740,0.09151613,197.44,197.43,99.37684853]
[1739326214230,0.09151613,197.44,197.43,85.965]
[1739326214445,0.09151613,197.44,197.43,80.9]
[1739326216508,9.99456087,197.44,197.37,9.90304474]
[1739326216839,1.74981613,197.44,197.38,5.0661]
[1739326217015,11.65286087,197.44,197.39,0.03]
[1739326217427,11.71586087,197.44,197.39,0.03]
[1739326217627,1.297e-05,197.45,197.44,0.37647]
[1739326217836,8.073e-05,197.46,197.45,13.41184853]
[1739326218139,7.26e-05,197.47,197.46,13.78831853]
[1739326218436,7.26e-05,197.47,197.46,15.54759166]
[1739326219138,2.55e-05,197.48,197.47,13.41184853]
[1739326220240,2.354e-05,197.49,197.48,13.41184853]
[1739326220426,2.354e-05,197.49,197.48,14.17109078]
[1739326221318,2.354e-05,197.49,197.48,19.23489078]
[1739326221730,2.354e-05,197.49,197.48,29.13793552]
[1739326222128,2.354e-05,197.49,197.48,28.37869327]
[1739326223045,2.354e-05,197.49,197.48,18.47564853]
[1739326223447,2.354e-05,197.49,197.48,5.0638]
[1739326223741,9.90306828,197.49,197.46,5.0642]
[1739326223945,9.90304474,197.47,197.45,80.9]
[1739326225827,9.90304474,197.46,197.45,80.9]
[1739326227637,9.90304474,197.46,197.43,5.065]
[1739326227842,11.54224474,197.47,197.43,5.065]
[1739326229524,9.90304474,197.46,197.43,5.065]
[1739326229730,1.6392,197.47,197.43,5.065]
[1739326229731,9.90304474,197.45,197.43,0.03]
[1739326230160,9.90304474,197.44,197.43,0.03]
[1739326230454,9.90304474,197.45,197.43,0.03]
[1739326231246,0.09555171,197.44,197.43,0.03]
[1739326232357,9.99859645,197.44,197.43,0.03]
[1739326233159,0.09555171,197.44,197.43,0.03]
[1739326235756,9.99859645,197.44,197.43,0.03]
[1739326242467,15.06339645,197.44,197.43,0.03]
[1739326245845,16.71899645,197.44,197.43,0.03]
[1739326248769,16.84448645,197.44,197.43,0.03]
[1739326251069,17.06757144,197.44,197.43,0.03]
[1739326251261,16.97201973,197.44,197.43,0.03]
[1739326251460,99.47201973,197.44,197.43,0.03]
[1739326257365,99.34652973,197.44,197.43,0.03]
[1739326257576,99.22103973,197.44,197.43,0.03]
[1739326260673,111.88303973,197.44,197.39,0.03]
[1739326260875,9.90304474,197.4,197.39,0.03]
[1739326265974,9.90304474,197.42,197.39,0.03]
[1739326266363,82.59759499,197.44,197.39,0.03]
[1739326266364,9.90304474,197.41,197.39,0.03]
[1739326269381,9.90304474,197.4,197.39,0.03]
[1739326271058,10.00160496,197.4,197.39,0.03]
[1739326271758,0.09856022,197.4,197.39,0.03]
[1739326272371,10.00160496,197.4,197.39,0.03]
[1739326276689,0.09856022,197.4,197.39,20.03]
[1739326276891,0.09856022,197.4,197.39,33.44184853]
[1739326277187,0.09856022,197.4,197.39,43.34489327]
[1739326277387,0.09856022,197.4,197.39,124.24489327]
[1739326277774,6.022e-05,197.4,197.39,132.35458327]
[1739326278882,6.022e-05,197.4,197.39,138.42068327]
[1739326279091,5.292e-05,197.41,197.4,13.41184853]
[1739326279281,5.292e-05,197.41,197.4,24.07444051]
[1739326279995,5.292e-05,197.41,197.4,13.41184853]
[1739326282194,5.292e-05,197.41,197.39,85.9961]
[1739326283185,5.292e-05,197.41,197.39,0.03]
[1739326283383,9.90304474,197.4,197.39,0.03]
[1739326290784,9.96604474,197.4,197.39,0.03]
[1739326291183,10.05799591,197.4,197.39,0.03]
[1739326304126,0.15495117,197.4,197.39,0.03]
[1739326305415,0.15495117,197.4,197.39,20.03]
[1739326305716,0.15495117,197.4,197.39,124.24489327]
[1739326306398,0.15495117,197.4,197.39,119.40794853]
[1739326311125,0.25320655,197.4,197.39,119.40794853]
[1739326311304,0.16125538,197.4,197.39,119.40794853]
[1739326313317,0.16125538,197.4,197.39,100.93]
[1739326313513,10.06430012,197.4,197.39,100.93]
[1739326313908,10.06430012,197.4,197.39,20.03]
[1739326320022,10.06430012,197.4,197.39,25.0961]
[1739326320731,10.06430012,197.4,197.39,20.03]
[1739326321520,10.06430012,197.4,197.39,25.0961]
[1739326324233,10.06430012,197.4,197.39,20.03]
[1739326325328,10.06430012,197.4,197.39,0.03]
[1739326327439,0.16125538,197.4,197.39,0.03]
[1739326328039,0.16125538,197.4,197.39,20.03]
[1739326328216,0.16125538,197.4,197.39,25.0961]
[1739326328617,10.06430012,197.4,197.39,20.03]
[1739326328818,10.06430012,197.4,197.39,0.03]
[1739326331220,10.17287891,197.4,197.39,0.03]
[1739326331420,10.07462353,197.4,197.39,0.03]
[1739326335169,54.75260249,197.4,197.39,0.03]
[1739326336022,15.14042353,197.4,197.39,0.03]
[1739326336760,10.07462353,197.4,197.39,0.03]
[1739326339175,15.14042353,197.4,197.39,0.03]
[1739326340151,10.07462353,197.4,197.39,0.03]
[1739326348160,15.14042353,197.4,197.39,0.03]
[1739326348763,54.75260249,197.4,197.39,0.03]
[1739326348962,54.75260249,197.4,197.33,0.03]
[1739326349147,9.90304474,197.34,197.33,0.03]
[1739326351168,9.99669368,197.34,197.33,0.03]
[1739326353863,15.06399368,197.34,197.33,0.03]
[1739326354041,9.99669368,197.34,197.33,0.03]
[1739326354473,15.06399368,197.34,197.33,0.03]
[1739326356542,9.99669368,197.34,197.33,0.03]
[1739326364568,15.06399368,197.34,197.33,0.03]
[1739326368485,15.06399368,197.34,197.25,80.93]
[1739326368667,5.16094894,197.34,197.27,20.0]
[1739326368980,9.90304474,197.28,197.27,20.0]
[1739326369560,9.90304474,197.28,197.25,5.0996]
[1739326370681,9.90304474,197.28,197.25,20.03]
[1739326371379,10.01072917,197.26,197.25,20.03]
[1739326372779,10.01072917,197.26,197.25,25.0997]
[1739326372961,0.10768443,197.26,197.25,25.0997]
[1739326375886,0.10768443,197.26,197.25,38.51154853]
[1739326376084,0.10768443,197.26,197.25,49.17483849]
[1739326376391,0.10768443,197.26,197.25,50.70333849]
[1739326376967,0.10768443,197.26,197.25,40.04004853]
[1739326379091,0.10768443,197.26,197.25,5.0997]
[1739326379393,10.01072917,197.26,197.25,0.03]
[1739326384490,0.10768443,197.26,197.25,0.03]
[1739326389242,0.10768443,197.26,197.25,5.0997]
[1739326389374,0.10768443,197.26,197.25,18.51154853]
[1739326390606,0.10768443,197.26,197.25,0.03]
[1739326391106,0.21571843,197.26,197.25,0.03]
[1739326391278,0.108034,197.26,197.25,0.03]
[1739326394093,0.108034,197.26,197.25,94.34184853]
[1739326394700,0.108034,197.26,197.25,99.41154853]
[1739326398506,0.108034,197.26,197.25,94.34184853]
[1739326398890,0.108034,197.26,197.25,80.93]
[1739326400604,0.108034,197.26,197.25,0.03]
[1739326401204,0.108034,197.26,197.25,20.03]
[1739326403027,0.108034,197.26,197.25,0.03]
[1739326403303,0.108034,197.26,197.25,20.03]
[1739326404610,0.108034,197.26,197.25,0.03]
[1739326405210,0.108034,197.26,197.25,20.03]
[1739326407231,0.108034,197.26,197.25,25.0997]
[1739326411122,0.2045145,197.26,197.25,25.0997]
[1739326411324,0.0964805,197.26,197.25,25.0997]
[1739326414431,0.07179568,197.26,197.25,25.0997]
[1739326414630,0.07179568,197.26,197.25,48.41459327]
[1739326418048,0.07179568,197.26,197.25,119.41154853]
[1739326418237,0.07179568,197.26,197.25,100.93]
[1739326418642,0.07179568,197.26,197.25,80.93]
[1739326421934,0.07179568,197.26,197.25,0.03]
[1739326421935,15.04424042,197.26,197.25,0.03]
[1739326422944,9.97484042,197.26,197.25,0.03]
[1739326424112,15.04424042,197.26,197.25,0.03]
[1739326426339,0.07179568,197.26,197.25,0.03]
[1739326430425,0.07179568,197.26,197.25,20.03]
[1739326431344,0.09131012,197.26,197.25,20.03]
[1739326432942,0.09131012,197.26,197.25,0.03]
[1739326435832,0.09131012,197.26,197.25,5.0997]
[1739326436251,0.15431012,197.26,197.25,5.0997]
[1739326436446,0.15431012,197.26,197.25,0.03]
[1739326438935,10.05735486,197.26,197.25,0.03]
[1739326439130,15.12675486,197.26,197.25,0.03]
[1739326440752,10.05735486,197.26,197.25,0.03]
[1739326442157,0.15431012,197.26,197.25,0.03]
[1739326450864,0.15431012,197.26,197.25,109.31459327]
[1739326451245,0.1686957,197.26,197.25,109.31459327]
[1739326452855,0.1686957,197.26,197.25,99.41154853]
[1739326453251,0.1686957,197.26,197.25,85.9997]
[1739326458067,0.1686957,197.26,197.25,99.41154853]
[1739326458355,0.1686957,197.26,197.25,109.31459327]
[1739326459576,0.1686957,197.26,197.25,99.41154853]
[1739326460457,0.1686957,197.26,197.25,85.9997]
[1739326461677,0.1686957,197.26,197.25,80.93]
[1739326462381,0.1686957,197.26,197.25,0.03]
[1739326462672,10.07174044,197.26,197.25,0.03]
[1739326462878,0.1686957,197.26,197.25,0.03]
[1739326470501,10.07174044,197.26,197.25,0.03]
[1739326471086,15.14114044,197.26,197.25,0.03]
[1739326471292,15.13522744,197.26,197.25,0.03]
[1739326472072,10.06582744,197.26,197.25,0.03]
[1739326473081,15.13522744,197.26,197.25,0.03]
[1739326473586,10.06582744,197.26,197.25,0.03]
[1739326477598,15.13522744,197.26,197.25,0.03]
[1739326483504,10.06582744,197.26,197.25,0.03]
[1739326490479,15.13522744,197.26,197.25,0.03]
[1739326491204,15.23390076,197.26,197.25,0.03]
[1739326491404,15.13411806,197.26,197.25,0.03]
[1739326501705,17.13411806,197.26,197.23,0.03]
[1739326502008,9.90304474,197.24,197.23,0.03]
[1739326502623,9.90304474,197.24,197.23,0.0001]
[1739326502811,10.90304474,197.24,197.23,0.0001]
[1739326503320,11.90304474,197.24,197.23,0.0001]
[1739326503613,14.97294474,197.24,197.23,0.0001]
[1739326503812,9.90304474,197.24,197.23,0.0001]
[1739326504708,0.16167332,197.26,197.23,0.0001]
[1739326507432,9.90304474,197.25,197.23,0.0001]
[1739326507625,10.06471806,197.26,197.23,0.0001]
[1739326507997,0.16167332,197.26,197.23,0.0001]
[1739326508410,0.16167332,197.26,197.23,96.98424474]
[1739326508808,0.16167332,197.26,197.23,87.0812]
[1739326510217,10.06471806,197.26,197.23,80.9001]
[1739326511017,0.16167332,197.26,197.23,80.9001]
[1739326511224,0.09159607,197.24,197.23,85.9703]
[1739326511425,0.09159607,197.24,197.23,80.9001]
[1739326515917,9.99464081,197.24,197.23,0.0001]
[1739326516532,0.09159607,197.24,197.23,5.0703]
[1739326516831,0.09159607,197.24,197.23,0.0001]
[1739326517511,9.99464081,197.24,197.23,0.0001]
[1739326518039,15.06454081,197.24,197.23,0.0001]
[1739326518723,15.19003081,197.24,197.23,0.0001]
[1739326519515,15.31552081,197.24,197.23,0.0001]
[1739326520231,15.31552081,197.24,197.22,0.03]
[1739326520232,16.31552081,197.24,197.22,0.03]
[1739326520436,49.5152237,197.2,197.19,0.03]
[1739326520937,54.8371037,197.2,197.19,0.03]
[1739326521140,57.4772037,197.2,197.19,0.03]
[1739326521515,56.4772037,197.2,197.19,0.03]
[1739326521837,56.2262237,197.2,197.19,0.03]
[1739326523134,57.3517137,197.2,197.19,0.03]
[1739326523341,9.90304474,197.15,197.14,0.03]
[1739326524607,14.97524474,197.15,197.14,0.03]
[1739326524815,9.90304474,197.15,197.14,0.03]
[1739326525933,14.97524474,197.15,197.14,0.03]
[1739326529949,9.90304474,197.15,197.14,0.03]
[1739326530850,9.90304474,197.17,197.14,0.03]
[1739326531228,0.0931268,197.15,197.14,0.03]
[1739326532132,0.0931268,197.15,197.14,9.93304474]
[1739326532341,0.0931268,197.15,197.14,16.46884474]
[1739326533046,0.0931268,197.15,197.14,116.61384141]
[1739326533253,0.0931268,197.15,197.14,115.85319327]
[1739326539952,0.0931268,197.15,197.14,117.41229327]
[1739326542841,0.0931268,197.15,197.14,117.53778327]
[1739326547357,0.0931268,197.15,197.14,115.85319327]
[1739326548672,0.0931268,197.15,197.14,99.41434853]
[1739326550564,0.0931268,197.15,197.14,94.34184853]
[1739326550872,0.0931268,197.15,197.14,99.41434853]
[1739326551250,0.10890526,197.15,197.14,99.41434853]
[1739326555790,0.10890526,197.15,197.14,94.34184853]
[1739326556293,0.10890526,197.15,197.14,99.41434853]
[1739326556992,0.10890526,197.15,197.14,94.34184853]
[1739326557690,0.10890526,197.15,197.14,80.93]
[1739326560790,10.01195,197.15,197.14,80.93]
[1739326561187,0.10890526,197.15,197.14,80.93]
[1739326561784,10.01195,197.15,197.14,80.93]
[1739326562490,10.01195,197.15,197.14,0.03]
[1739326563598,15.08415,197.15,197.14,0.03]
[1739326563902,10.01195,197.15,197.14,0.03]
[1739326565994,0.10890526,197.15,197.14,0.03]
[1739326568502,15.08415,197.15,197.14,0.03]
[1739326569376,10.01195,197.15,197.14,0.03]
[1739326570903,15.08415,197.15,197.14,0.03]
[1739326571406,10.01429676,197.15,197.14,0.03]
[1739326572404,15.08649676,197.15,197.14,0.03]
[1739326573813,10.01429676,197.15,197.14,0.03]
[1739326574424,0.11125202,197.15,197.14,0.03]
[1739326575312,10.01429676,197.15,197.14,0.03]
[1739326575485,16.70259676,197.15,197.14,0.03]
[1739326577185,16.82808676,197.15,197.14,0.03]
[1739326582215,17.82808676,197.15,197.14,0.03]
[1739326582621,18.82808676,197.15,197.14,0.03]
[1739326583126,18.82808676,197.15,197.13,0.03]
[1739326583429,9.90304474,197.14,197.13,0.03]
[1739326583920,14.97554474,197.14,197.13,0.03]
[1739326584613,9.90304474,197.14,197.13,0.03]
[1739326586018,10.01429676,197.15,197.13,0.03]
[1739326588207,0.11125202,197.15,197.13,0.03]
[1739326589815,0.11125202,197.15,197.13,9.93304474]
[1739326590123,0.11125202,197.15,197.14,9.90304474]
[1739326591130,0.21646595,197.15,197.14,9.90304474]
[1739326591430,0.10521393,197.15,197.14,9.90304474]
[1739326592124,0.10521393,197.15,197.14,14.97554474]
[1739326592438,0.10521393,197.15,197.14,28.38739327]
[1739326592933,0.10521393,197.15,197.14,109.28739327]
[1739326593910,0.10521393,197.15,197.14,109.26256841]
[1739326597734,0.10521393,197.15,197.14,90.77821988]
[1739326597916,0.10521393,197.15,197.14,95.85071988]
[1739326598728,0.10521393,197.15,197.14,95.88071988]
[1739326599037,0.10521393,197.15,197.14,109.29256841]
[1739326603646,1.393e-05,197.15,197.14,111.13404841]
[1739326603834,4.397e-05,197.18,197.17,33.66282853]
[1739326604023,4.397e-05,197.18,197.17,44.32627464]
[1739326605232,4.397e-05,197.18,197.17,49.39797464]
[1739326605817,4.397e-05,197.18,197.17,48.38659327]
[1739326607836,4.397e-05,197.18,197.17,129.28659327]
[1739326610949,0.06304397,197.18,197.17,129.28659327]
[1739326611244,0.17210927,197.18,197.17,129.28659327]
[1739326611446,0.1720653,197.18,197.17,129.28659327]
[1739326614953,0.1720653,197.18,197.17,129.78855327]
[1739326615328,0.1720653,197.18,197.17,129.28659327]
[1739326622734,0.1720653,197.18,197.17,129.53757327]
[1739326622940,0.1720653,197.18,197.17,129.56757327]
[1739326623862,0.1720653,197.18,197.17,129.31659327]
[1739326624463,0.1720653,197.18,197.17,129.56757327]
[1739326625138,0.1720653,197.18,197.17,129.31659327]
[1739326625341,0.1720653,197.18,197.17,119.41354853]
[1739326625750,0.1720653,197.18,197.17,129.31659327]
[1739326627960,0.1720653,197.18,197.17,100.93]
[1739326628976,0.1720653,197.18,197.17,119.41354853]
[1739326629147,0.1720653,197.18,197.17,129.31659327]
[1739326631259,0.063,197.18,197.17,129.31659327]
[1739326633149,0.063,197.18,197.17,129.56757327]
[1739326633342,0.0001,197.18,197.17,129.81855327]
[1739326633572,0.0001,197.19,197.18,13.66282853]
[1739326633873,0.0001,197.19,197.18,106.47719039]
[1739326634044,0.0001,197.19,197.18,105.71685327]
[1739326635467,0.0001,197.19,197.18,152.69458362]
[1739326636567,0.063,197.24,197.22,0.25098]
[1739326636757,0.063,197.24,197.23,9.90304474]
[1739326637070,0.063,197.24,197.23,23.31489327]
[1739326637570,0.063,197.24,197.23,24.57705896]
[1739326638169,0.063,197.24,197.23,105.47705896]
[1739326638375,0.063,197.26,197.25,43.56587327]
[1739326638552,0.063,197.26,197.25,44.32599149]
[1739326639376,0.063,197.26,197.25,49.39569149]
[1739326639947,0.063,197.26,197.25,48.63557327]
[1739326643675,0.063,197.26,197.25,129.53557327]
[1739326644158,0.063,197.26,197.25,129.78655327]
[1739326644548,0.063,197.33,197.29,20.0]
[1739326644746,0.063,197.33,197.32,23.31489327]
[1739326646168,0.063,197.33,197.32,28.38279327]
[1739326649385,0.063,197.33,197.32,109.28279327]
[1739326649882,0.063,197.33,197.32,80.9]
[1739326650361,0.063,197.33,197.28,90.80304474]
[1739326650561,0.063,197.33,197.29,13.41184853]
[1739326651274,0.063,197.33,197.29,18.48044853]
[1739326651685,0.063,197.33,197.29,13.41184853]
[1739326652062,0.063,197.33,197.29,18.48044853]
[1739326652584,0.063,197.33,197.29,28.38349327]
[1739326653375,0.063,197.33,197.31,13.41184853]
[1739326653674,0.063,197.33,197.32,9.90304474]
[1739326655290,0.063,197.33,197.32,109.28279327]
[1739326656391,0.063,197.33,197.32,109.53377327]
[1739326657185,0.063,197.33,197.32,109.78475327]
[1739326657389,0.063,197.35,197.34,18.73012853]
[1739326657688,0.063,197.35,197.34,110.29291526]
[1739326657991,0.063,197.35,197.34,109.53317327]
[1739326658183,0.063,197.35,197.34,109.78415327]
[1739326659485,0.063,197.35,197.34,109.53317327]
[1739326659660,0.063,197.35,197.34,109.28219327]
[1739326662395,0.063,197.35,197.34,109.53317327]
[1739326662601,0.063,197.35,197.34,109.78415327]
[1739326663090,0.0001,197.35,197.34,109.78415327]
[1739326663593,0.0001,197.35,197.34,110.78415327]
[1739326664389,0.0001,197.35,197.34,109.78415327]
[1739326665991,0.0001,197.35,197.34,110.78415327]
[1739326666195,0.0001,197.38,197.37,20.50196]
[1739326666402,0.063,197.41,197.4,20.25098]
[1739326666573,0.063,197.41,197.4,125.22536425]
[1739326666768,0.063,197.46,197.43,20.25098]
[1739326667072,0.063,197.46,197.43,44.57629823]
[1739326667289,0.0001,197.44,197.43,45.57629823]
[1739326667493,0.0001,197.44,197.43,125.47629823]
[1739326667698,0.0001,197.44,197.43,124.71685327]
[1739326668502,0.0001,197.44,197.43,130.78185327]
[1739326670176,0.0001,197.44,197.43,131.78185327]
[1739326671194,0.0001,197.44,197.43,130.78185327]
[1739326671379,0.0001,197.44,197.43,131.78185327]
[1739326673209,0.0001,197.44,197.43,130.78185327]
[1739326674889,0.0001,197.46,197.44,14.91380853]
[1739326675090,0.0001,197.46,197.45,24.57611475]
[1739326675280,0.0001,197.47,197.46,23.56587327]
[1739326676402,0.0001,197.47,197.46,104.71685327]
[1739326677228,0.0001,197.47,197.46,109.53017327]
[1739326679923,0.0001,197.47,197.46,109.27919327]
[1739326680500,0.0001,197.47,197.46,99.37614853]
[1739326681218,0.0001,197.47,197.46,109.27919327]
[1739326681724,0.0001,197.47,197.46,109.53017327]
[1739326684609,0.0001,197.47,197.46,109.27919327]
[1739326685331,0.0001,197.47,197.46,85.9643]
[1739326685632,0.0001,197.47,197.46,80.9]
[1739326686403,1.5212,197.47,197.46,80.9]
[1739326686604,11.42424474,197.47,197.46,80.9]
[1739326686932,7.0759,197.46,197.34,5.1302]